[Event "9th RTU Rapid 2019"]
[Site "Riga"]
[Date "2019.08.04"]
[Round "1.29"]
[White "Stivrins, Eriks"]
[Black "Vedrickas, Tautvydas"]
[Result "0-1"]
[WhiteElo "1636"]
[BlackElo "2231"]
[PlyCount "42"]
[EventDate "2019.08.05"]
[EventType "swiss"]
[EventCountry "LAT"]
[TimeControl "5400+30"]
[WhiteClock "0:12:22"]
[BlackClock "0:07:14"]

1. c4 {[%emt 1:15:25]} Nf6 {[%emt 1:15:22]} 2. Nc3 {[%emt 0:00:27]} g6 {[%emt 0:00:28]} 3. d4 {[%emt 0:00:28]} Bg7 {[%emt 0:00:27]} 4. e4 {[%emt 0:00:27]} O-O {[%emt 0:00:28]} 5. f3 {[%emt 0:00:28]} d6 {[%emt 0:00:34]} 6. Be3 {[%emt 0:00:28]} a6 {[%emt 0:01:02]} 7. Bd3 {[%emt 0:00:40]} Nc6 {[%emt 0:00:28]} 8. a3 {[%emt 0:00:34]} e5 {[%emt 0:00:32]} 9. d5 {[%emt 0:01:01]} Nd4 {[%emt 0:00:29]} 10. Nge2 {[%emt 0:00:31]} c5 {[%emt 0:00:26]} 11. O-O {[%emt 0:00:45]} h5 {[%emt 0:00:48]} 12. f4 {[%emt 0:02:34]} Ng4 {[%emt 0:00:36]} 13. Bd2 {[%emt 0:00:55]} exf4 {[%emt 0:00:53]} 14. Bxf4 {[%emt 0:00:59]} g5 {[%emt 0:01:03]} 15. Bd2 {[%emt 0:01:05]} h4 {[%emt 0:00:47]} 16. h3 {[%emt 0:00:43]} Ne5 {[%emt 0:00:26]} 17. Nxd4 {[%emt 0:01:41]} cxd4 {[%emt 0:00:36]} 18. Qh5 {[%emt 0:01:28]} f6 {[%emt 0:00:46]} 19. Be2 {[%emt 0:01:16]} dxc3 {[%emt 0:00:33]} 20. Bxc3 {[%emt 0:00:33]} Bd7 {[%emt 0:00:50]} 21. b4 {[%emt 0:00:48]} Be8 {[%emt 0:00:34]} 0-1

[Event "9th RTU Rapid 2019"]
[Site "Riga"]
[Date "2019.08.04"]
[Round "1.30"]
[White "Chibukhchyan, Erik"]
[Black "Vainermanas, Berelis"]
[Result "1-0"]
[WhiteElo "2231"]
[BlackElo "1575"]
[PlyCount "63"]
[EventDate "2019.08.05"]
[EventType "swiss"]
[EventCountry "LAT"]
[TimeControl "5400+30"]
[WhiteClock "0:07:03"]
[BlackClock "0:07:12"]

1. e4 {[%emt 1:15:22]} c5 {[%emt 1:15:22]} 2. Nf3 {[%emt 0:00:27]} g6 {[%emt 0:00:28]} 3. d4 {[%emt 0:00:25]} cxd4 {[%emt 0:00:27]} 4. Nxd4 {[%emt 0:00:27]} Nc6 {[%emt 0:00:26]} 5. c4 {[%emt 0:00:26]} Nf6 {[%emt 0:00:31]} 6. Nc3 {[%emt 0:00:27]} d6 {[%emt 0:00:31]} 7. Be2 {[%emt 0:00:27]} Nxd4 {[%emt 0:00:32]} 8. Qxd4 {[%emt 0:00:26]} Bg7 {[%emt 0:00:26]} 9. O-O {[%emt 0:00:29]} O-O {[%emt 0:00:28]} 10. Qd3 {[%emt 0:01:05]} Be6 {[%emt 0:00:29]} 11. Be3 {[%emt 0:00:35]} Qa5 {[%emt 0:01:12]} 12. f3 {[%emt 0:01:08]} Rfc8 {[%emt 0:00:30]} 13. b3 {[%emt 0:00:27]} a6 {[%emt 0:00:50]} 14. a4 {[%emt 0:01:16]} Nd7 {[%emt 0:00:36]} 15. Rfc1 {[%emt 0:01:16]} Nc5 {[%emt 0:00:38]} 16. Qc2 {[%emt 0:00:30]} Qc7 {[%emt 0:02:16]} 17. Rab1 {[%emt 0:00:44]} f5 {[%emt 0:00:52]} 18. Nd5 {[%emt 0:03:05]} Bxd5 {[%emt 0:00:32]} 19. exd5 {[%emt 0:00:26]} Nd7 {[%emt 0:01:06]} 20. f4 {[%emt 0:00:39]} Nf6 {[%emt 0:01:11]} 21. Qd3 {[%emt 0:02:05]} Ne4 {[%emt 0:01:13]} 22. Bf3 {[%emt 0:00:37]} Nc5 {[%emt 0:00:39]} 23. Qd2 {[%emt 0:00:41]} Re8 {[%emt 0:00:41]} 24. a5 {[%emt 0:00:27]} e5 {[%emt 0:00:50]} 25. dxe6 {[%emt 0:00:29]} Nxe6 {[%emt 0:00:46]} 26. Bd5 {[%emt 0:00:27]} Kh8 {[%emt 0:00:33]} 27. b4 {[%emt 0:00:43]} Qe7 {[%emt 0:00:50]} 28. Re1 {[%emt 0:00:36]} Rab8 {[%emt 0:01:07]} 29. Ba7 {[%emt 0:00:43]} Ra8 {[%emt 0:01:20]} 30. Rxe6 {[%emt 0:00:40]} Qd7 {[%emt 0:00:31]} 31. Rxe8+ {[%emt 0:00:33]} Qxe8 {[%emt 0:00:34]} 32. Bd4 {[%emt 0:00:40]} 1-0

[Event "9th RTU Rapid 2019"]
[Site "Riga"]
[Date "2019.08.04"]
[Round "1.31"]
[White "Neprokin, Georgij"]
[Black "Schulman, Leonid"]
[Result "0-1"]
[WhiteElo "1547"]
[BlackElo "2230"]
[PlyCount "88"]
[EventDate "2019.08.05"]
[EventType "swiss"]
[EventCountry "LAT"]
[TimeControl "5400+30"]
[WhiteClock "0:04:08"]
[BlackClock "0:04:41"]

1. d4 {[%emt 1:15:22]} Nf6 {[%emt 1:15:26]} 2. Nf3 {[%emt 0:00:26]} c5 {[%emt 0:00:32]} 3. d5 {[%emt 0:00:28]} d6 {[%emt 0:00:29]} 4. c4 {[%emt 0:00:26]} e5 {[%emt 0:00:30]} 5. Nc3 {[%emt 0:00:40]} g6 {[%emt 0:00:33]} 6. e4 {[%emt 0:00:40]} Bg7 {[%emt 0:00:29]} 7. Be2 {[%emt 0:00:31]} O-O {[%emt 0:00:29]} 8. O-O {[%emt 0:00:29]} a6 {[%emt 0:00:28]} 9. a3 {[%emt 0:00:44]} Nbd7 {[%emt 0:00:39]} 10. Bd2 {[%emt 0:00:45]} Nh5 {[%emt 0:00:34]} 11. b4 {[%emt 0:00:44]} Nf4 {[%emt 0:00:47]} 12. Bxf4 {[%emt 0:00:51]} exf4 {[%emt 0:00:27]} 13. Qd2 {[%emt 0:00:43]} g5 {[%emt 0:00:53]} 14. Rac1 {[%emt 0:00:34]} b6 {[%emt 0:01:53]} 15. h3 {[%emt 0:01:17]} Ne5 {[%emt 0:00:53]} 16. Nxe5 {[%emt 0:00:48]} Bxe5 {[%emt 0:00:30]} 17. Na4 {[%emt 0:01:30]} Rb8 {[%emt 0:02:05]} 18. Nb2 {[%emt 0:00:34]} Qf6 {[%emt 0:01:41]} 19. Nd3 {[%emt 0:00:31]} Bd4 {[%emt 0:00:34]} 20. Bf3 {[%emt 0:00:47]} Bd7 {[%emt 0:00:40]} 21. Rfe1 {[%emt 0:00:42]} Rbe8 {[%emt 0:00:27]} 22. bxc5 {[%emt 0:00:41]} bxc5 {[%emt 0:00:29]} 23. Rb1 {[%emt 0:00:30]} Bc3 {[%emt 0:01:15]} 24. Qe2 {[%emt 0:00:45]} Bxe1 25. Qxe1 {[%emt 0:00:27]} Qd4 {[%emt 0:01:05]} 26. Nb2 {[%emt 0:01:43]} f5 {[%emt 0:00:44]} 27. Bh5 {[%emt 0:00:39]} Rxe4 {[%emt 0:00:43]} 28. Qa5 {[%emt 0:00:37]} Qe5 {[%emt 0:01:37]} 29. Bf3 {[%emt 0:00:37]} Rd4 {[%emt 0:00:48]} 30. Re1 {[%emt 0:00:55]} Qf6 {[%emt 0:00:45]} 31. Qc7 {[%emt 0:01:17]} Re8 {[%emt 0:00:43]} 32. Rxe8+ {[%emt 0:01:22]} Bxe8 {[%emt 0:00:26]} 33. Qc8 {[%emt 0:00:27]} Qe7 {[%emt 0:00:46]} 34. Bh5 {[%emt 0:00:37]} Re4 {[%emt 0:00:32]} 35. Bf3 {[%emt 0:01:02]} Re1+ {[%emt 0:00:36]} 36. Kh2 {[%emt 0:00:26]} g4 {[%emt 0:00:47]} 37. Bd1 {[%emt 0:00:42]} g3+ {[%emt 0:01:11]} 38. fxg3 {[%emt 0:00:43]} fxg3+ {[%emt 0:00:26]} 39. Kxg3 {[%emt 0:00:39]} Qe5+ {[%emt 0:00:27]} 40. Kh4 {[%emt 0:00:53]} Qf4+ {[%emt 0:00:51]} 41. g4 {[%emt 0:00:42]} Qh6+ {[%emt 0:01:06]} 42. Kg3 {[%emt 0:00:36]} Re3+ {[%emt 0:00:31]} 43. Bf3 {[%emt 0:01:01]} f4+ {[%emt 0:00:28]} 44. Kg2 {[%emt 0:00:26]} Qh4 {[%emt 0:00:37]} 0-1

[Event "9th RTU Rapid 2019"]
[Site "Riga"]
[Date "2019.08.04"]
[Round "1.32"]
[White "Bracker, Arne"]
[Black "Osetrov, Dmitrij"]
[Result "1-0"]
[WhiteElo "2227"]
[BlackElo "1794"]
[PlyCount "57"]
[EventDate "2019.08.05"]
[EventType "swiss"]
[EventCountry "LAT"]
[TimeControl "5400+30"]
[WhiteClock "0:00:07"]
[BlackClock "0:03:25"]

1. e4 {[%emt 1:15:23]} c5 {[%emt 1:15:20]} 2. Nf3 {[%emt 0:00:30]} Nc6 {[%emt 0:00:27]} 3. d4 {[%emt 0:00:27]} cxd4 {[%emt 0:00:26]} 4. Nxd4 {[%emt 0:00:27]} Nf6 {[%emt 0:00:26]} 5. Nc3 {[%emt 0:00:29]} e5 {[%emt 0:00:27]} 6. Ndb5 {[%emt 0:00:28]} d6 {[%emt 0:00:26]} 7. Bg5 {[%emt 0:00:28]} a6 {[%emt 0:00:27]} 8. Na3 {[%emt 0:00:29]} b5 {[%emt 0:00:26]} 9. Nd5 {[%emt 0:00:33]} Be7 {[%emt 0:00:27]} 10. Bxf6 {[%emt 0:00:28]} Bxf6 {[%emt 0:00:26]} 11. c4 {[%emt 0:00:28]} b4 {[%emt 0:00:27]} 12. Nc2 {[%emt 0:00:28]} a5 {[%emt 0:00:40]} 13. Qf3 {[%emt 0:00:33]} Bg5 {[%emt 0:00:28]} 14. h4 {[%emt 0:00:30]} Bh6 {[%emt 0:00:26]} 15. g4 {[%emt 0:00:38]} Bf4 {[%emt 0:00:27]} 16. g5 {[%emt 0:04:59]} h6 {[%emt 0:06:23]} 17. Nxf4 {[%emt 0:01:20]} exf4 {[%emt 0:00:29]} 18. e5 {[%emt 0:01:14]} Bb7 {[%emt 0:01:16]} 19. O-O-O {[%emt 0:00:56]} hxg5 {[%emt 0:05:38]} 20. hxg5 {[%emt 0:01:58]} Rxh1 {[%emt 0:01:31]} 21. Qxh1 {[%emt 0:00:26]} Qe7 {[%emt 0:01:00]} 22. exd6 {[%emt 0:01:00]} Qf8 {[%emt 0:01:30]} 23. Qe4+ {[%emt 0:01:48]} Kd8 {[%emt 0:00:47]} 24. Qxf4 {[%emt 0:00:42]} a4 {[%emt 0:00:51]} 25. Nd4 {[%emt 0:01:20]} Nxd4 {[%emt 0:00:52]} 26. Qxd4 {[%emt 0:00:31]} Ra6 {[%emt 0:00:48]} 27. c5 {[%emt 0:00:31]} Rc6 {[%emt 0:00:33]} 28. Qxb4 {[%emt 0:01:19]} Bc8 {[%emt 0:00:29]} 29. Bb5 {[%emt 0:00:42]} 1-0

[Event "9th RTU Rapid 2019"]
[Site "Riga"]
[Date "2019.08.04"]
[Round "1.33"]
[White "Gubareva, Sofia"]
[Black "Damen, Jip"]
[Result "0-1"]
[WhiteElo "1593"]
[BlackElo "2179"]
[PlyCount "100"]
[EventDate "2019.08.05"]
[EventType "swiss"]
[EventCountry "LAT"]
[TimeControl "5400+30"]
[WhiteClock "0:14:04"]
[BlackClock "0:10:19"]

1. d4 {[%emt 1:15:23]} Nf6 {[%emt 1:15:23]} 2. c4 {[%emt 0:00:27]} g6 {[%emt 0:00:29]} 3. Nc3 {[%emt 0:00:26]} Bg7 {[%emt 0:00:26]} 4. e4 {[%emt 0:00:27]} O-O {[%emt 0:00:27]} 5. f3 {[%emt 0:00:27]} c5 {[%emt 0:00:27]} 6. d5 {[%emt 0:00:27]} e6 {[%emt 0:00:27]} 7. Be3 {[%emt 0:00:28]} d6 {[%emt 0:00:28]} 8. Qd2 {[%emt 0:00:28]} exd5 {[%emt 0:00:26]} 9. cxd5 {[%emt 0:00:35]} a6 {[%emt 0:00:27]} 10. a4 {[%emt 0:00:28]} Nbd7 {[%emt 0:00:27]} 11. Nge2 {[%emt 0:00:30]} h5 {[%emt 0:00:29]} 12. h4 {[%emt 0:00:34]} Ne5 {[%emt 0:00:30]} 13. Nc1 {[%emt 0:00:31]} Re8 {[%emt 0:00:29]} 14. Bh6 {[%emt 0:00:59]} Bh8 {[%emt 0:00:30]} 15. Bg5 {[%emt 0:00:27]} Qc7 {[%emt 0:00:27]} 16. Be2 {[%emt 0:00:40]} Rb8 {[%emt 0:00:27]} 17. Rf1 {[%emt 0:00:55]} Nh7 {[%emt 0:00:37]} 18. Bf4 {[%emt 0:00:28]} f5 {[%emt 0:00:46]} 19. Qc2 {[%emt 0:01:00]} Bf6 {[%emt 0:00:28]} 20. g3 {[%emt 0:00:38]} Bg7 {[%emt 0:00:33]} 21. Kf2 {[%emt 0:00:27]} fxe4 {[%emt 0:00:33]} 22. Nxe4 {[%emt 0:00:30]} Bf5 {[%emt 0:00:29]} 23. Re1 {[%emt 0:00:47]} Bxe4 {[%emt 0:00:27]} 24. fxe4 {[%emt 0:00:35]} Nf6 {[%emt 0:00:27]} 25. Nd3 {[%emt 0:00:45]} Nxe4+ {[%emt 0:00:37]} 26. Kg2 {[%emt 0:00:27]} Ng4 {[%emt 0:00:54]} 27. Bxg4 {[%emt 0:00:38]} hxg4 {[%emt 0:00:25]} 28. Nf2 {[%emt 0:01:06]} Nxf2 29. Qxf2 {[%emt 0:00:27]} Qf7 {[%emt 0:01:02]} 30. Qd2 {[%emt 0:00:35]} Bd4 {[%emt 0:00:30]} 31. Qc2 {[%emt 0:00:51]} Qxd5+ {[%emt 0:00:27]} 32. Kh2 {[%emt 0:00:26]} Kg7 {[%emt 0:00:35]} 33. Qd2 {[%emt 0:00:31]} Qb3 {[%emt 0:00:36]} 34. Bxd6 {[%emt 0:01:48]} Rbd8 {[%emt 0:00:28]} 35. Rxe8 {[%emt 0:00:41]} Rxe8 {[%emt 0:00:26]} 36. Re1 {[%emt 0:00:27]} Rxe1 {[%emt 0:00:40]} 37. Qxe1 {[%emt 0:00:25]} Qxb2+ {[%emt 0:00:29]} 38. Kh1 {[%emt 0:00:26]} Qa1 {[%emt 0:01:04]} 39. Qxa1 {[%emt 0:00:39]} Bxa1 {[%emt 0:00:26]} 40. Bxc5 {[%emt 0:00:27]} b5 {[%emt 0:00:26]} 41. axb5 {[%emt 0:00:39]} axb5 {[%emt 0:00:26]} 42. Bb4 {[%emt 0:00:31]} Kf7 {[%emt 0:00:27]} 43. Kg1 {[%emt 0:00:26]} Ke6 {[%emt 0:00:49]} 44. Kf2 {[%emt 0:00:27]} Kd5 {[%emt 0:00:26]} 45. Ke3 {[%emt 0:00:38]} Be5 {[%emt 0:00:27]} 46. Be1 {[%emt 0:00:37]} Bd6 {[%emt 0:00:33]} 47. Kd3 {[%emt 0:00:29]} b4 {[%emt 0:00:29]} 48. Bf2 {[%emt 0:00:29]} Be5 {[%emt 0:00:31]} 49. Kc2 {[%emt 0:00:43]} Ke4 {[%emt 0:00:27]} 50. Be1 {[%emt 0:00:26]} Bc3 {[%emt 0:00:37]} 0-1

[Event "9th RTU Rapid 2019"]
[Site "Riga"]
[Date "2019.08.04"]
[Round "2.1"]
[White "Svane, Rasmus"]
[Black "Kleinschroth, Roland"]
[Result "1-0"]
[WhiteElo "2612"]
[BlackElo "2092"]
[PlyCount "33"]
[EventDate "2019.08.05"]
[EventType "swiss"]
[EventCountry "LAT"]
[TimeControl "5400+30"]
[WhiteClock "0:07:22"]
[BlackClock "0:11:21"]

1. Nf3 {[%emt 1:15:22]} d6 {[%emt 1:15:26]} 2. d4 {[%emt 0:00:28]} f5 {[%emt 0:00:32]} 3. Nc3 {[%emt 0:00:42]} Nf6 {[%emt 0:00:37]} 4. Bg5 {[%emt 0:00:28]} Nbd7 {[%emt 0:00:45]} 5. Qd3 {[%emt 0:00:29]} e6 {[%emt 0:00:41]} 6. e4 {[%emt 0:02:10]} fxe4 {[%emt 0:00:30]} 7. Nxe4 {[%emt 0:00:27]} Be7 {[%emt 0:00:27]} 8. Nxf6+ {[%emt 0:01:35]} Bxf6 {[%emt 0:00:55]} 9. Qe3 {[%emt 0:00:45]} O-O {[%emt 0:01:12]} 10. Bc4 {[%emt 0:00:29]} Nb6 {[%emt 0:00:43]} 11. Bxe6+ {[%emt 0:00:50]} Bxe6 {[%emt 0:01:17]} 12. Qxe6+ {[%emt 0:00:27]} Kh8 {[%emt 0:00:27]} 13. Be3 {[%emt 0:00:38]} Re8 {[%emt 0:01:56]} 14. Qb3 {[%emt 0:00:29]} a5 {[%emt 0:02:03]} 15. a4 {[%emt 0:00:49]} c6 {[%emt 0:01:56]} 16. O-O {[%emt 0:00:30]} Qd7 {[%emt 0:01:11]} 17. Qxb6 {[%emt 0:00:31]} 1-0

[Event "9th RTU Rapid 2019"]
[Site "Riga"]
[Date "2019.08.04"]
[Round "2.2"]
[White "Kopylov, Daniel"]
[Black "Pultinevicius, Paulius"]
[Result "0-1"]
[WhiteElo "2103"]
[BlackElo "2501"]
[PlyCount "124"]
[EventDate "2019.08.05"]
[EventType "swiss"]
[EventCountry "LAT"]
[TimeControl "5400+30"]
[WhiteClock "0:00:29"]
[BlackClock "0:00:07"]

1. e4 {[%emt 1:15:23]} e5 {[%emt 1:15:21]} 2. Nf3 {[%emt 0:00:30]} Nc6 {[%emt 0:00:27]} 3. Nc3 {[%emt 0:00:32]} Nf6 {[%emt 0:00:34]} 4. d4 {[%emt 0:00:28]} exd4 {[%emt 0:00:27]} 5. Nxd4 {[%emt 0:00:26]} Bb4 {[%emt 0:00:26]} 6. Nxc6 bxc6 {[%emt 0:00:26]} 7. Bd3 {[%emt 0:00:54]} O-O {[%emt 0:00:28]} 8. O-O {[%emt 0:00:28]} Re8 {[%emt 0:00:28]} 9. Bg5 {[%emt 0:00:51]} Rb8 {[%emt 0:01:06]} 10. f4 {[%emt 0:01:54]} h6 {[%emt 0:01:16]} 11. Bh4 {[%emt 0:01:52]} Be7 {[%emt 0:00:27]} 12. e5 {[%emt 0:01:07]} Nd5 {[%emt 0:00:32]} 13. Bxe7 {[%emt 0:00:32]} Qxe7 {[%emt 0:00:31]} 14. Nxd5 {[%emt 0:00:31]} cxd5 {[%emt 0:00:28]} 15. b3 {[%emt 0:00:43]} d6 {[%emt 0:00:40]} 16. exd6 {[%emt 0:01:16]} Qxd6 {[%emt 0:00:26]} 17. Qf3 {[%emt 0:00:59]} Bb7 {[%emt 0:01:24]} 18. Rae1 {[%emt 0:00:47]} Qb6+ {[%emt 0:00:29]} 19. Qf2 {[%emt 0:01:14]} d4 {[%emt 0:00:49]} 20. Re5 {[%emt 0:01:41]} f6 {[%emt 0:00:40]} 21. Rb5 {[%emt 0:02:45]} Qd6 {[%emt 0:00:27]} 22. Re1 {[%emt 0:00:27]} Qc6 {[%emt 0:04:54]} 23. Rxe8+ {[%emt 0:03:27]} Rxe8 {[%emt 0:00:32]} 24. h3 {[%emt 0:00:39]} Ba6 {[%emt 0:02:33]} 25. a4 {[%emt 0:01:26]} Rd8 {[%emt 0:03:06]} 26. Qg3 {[%emt 0:01:30]} Bxb5 {[%emt 0:00:49]} 27. axb5 {[%emt 0:00:26]} Qe8 {[%emt 0:00:31]} 28. Qg4 {[%emt 0:00:41]} Kf8 {[%emt 0:01:32]} 29. Qf5 {[%emt 0:00:30]} Rd6 {[%emt 0:00:41]} 30. Kh2 {[%emt 0:00:34]} Ke7 {[%emt 0:02:03]} 31. Qe4+ {[%emt 0:00:31]} Kd7 {[%emt 0:00:34]} 32. Qb7 {[%emt 0:00:36]} g6 {[%emt 0:00:36]} 33. b6 {[%emt 0:00:35]} Rxb6 {[%emt 0:00:41]} 34. Bb5+ {[%emt 0:00:26]} Rxb5 {[%emt 0:00:28]} 35. Qxb5+ {[%emt 0:00:26]} Kd8 {[%emt 0:00:27]} 36. Qb8+ {[%emt 0:00:28]} Kd7 {[%emt 0:00:26]} 37. Qxa7 {[%emt 0:00:28]} Qe3 {[%emt 0:00:27]} 38. Qa4+ {[%emt 0:00:39]} Kd8 {[%emt 0:00:30]} 39. Qa8+ {[%emt 0:00:28]} Ke7 {[%emt 0:00:26]} 40. Qh8 {[%emt 0:00:43]} Qxf4+ {[%emt 0:00:27]} 41. Kg1 {[%emt 0:00:25]} Qc1+ {[%emt 0:00:34]} 42. Kh2 {[%emt 0:00:26]} Qxc2 {[%emt 0:00:29]} 43. Qg7+ {[%emt 0:00:26]} Ke6 {[%emt 0:00:27]} 44. Qg8+ {[%emt 0:00:28]} Ke5 {[%emt 0:00:29]} 45. Qe8+ {[%emt 0:00:27]} Kf4 {[%emt 0:00:35]} 46. Qd8 {[%emt 0:00:29]} Ke3 {[%emt 0:00:34]} 47. Qxf6 {[%emt 0:00:29]} Qf5 {[%emt 0:00:36]} 48. Qe7+ {[%emt 0:00:32]} Kd3 {[%emt 0:00:33]} 49. Qxc7 {[%emt 0:00:28]} Kd2 {[%emt 0:00:31]} 50. b4 {[%emt 0:00:21]} d3 {[%emt 0:00:27]} 51. Qc5 {[%emt 0:00:54]} Qf4+ {[%emt 0:00:30]} 52. Kh1 {[%emt 0:00:01]} Ke2 {[%emt 0:00:28]} 53. Qe7+ {[%emt 0:00:52]} Qe3 {[%emt 0:00:27]} 54. Qd7 {[%emt 0:00:41]} d2 {[%emt 0:00:26]} 55. Qg4+ {[%emt 0:00:25]} Ke1 {[%emt 0:00:27]} 56. Qh4+ {[%emt 0:00:27]} Ke2 {[%emt 0:00:32]} 57. Qg4+ {[%emt 0:00:26]} Kd3 {[%emt 0:00:28]} 58. Qd7+ {[%emt 0:00:33]} Kc3 {[%emt 0:00:28]} 59. Qc6+ {[%emt 0:00:40]} Kb2 {[%emt 0:00:27]} 60. Qf6+ {[%emt 0:00:29]} Qc3 {[%emt 0:00:35]} 61. Qf2 {[%emt 0:00:31]} Kb1 {[%emt 0:00:26]} 62. Qf1+ {[%emt 0:00:30]} Qc1 {[%emt 0:00:27]} 0-1

[Event "9th RTU Rapid 2019"]
[Site "Riga"]
[Date "2019.08.04"]
[Round "2.3"]
[White "Golubovskis, Maksims"]
[Black "Wagner, Dennis"]
[Result "0-1"]
[WhiteElo "2081"]
[BlackElo "2473"]
[PlyCount "109"]
[EventDate "2019.08.05"]
[EventType "swiss"]
[EventCountry "LAT"]
[TimeControl "5400+30"]
[WhiteClock "0:00:20"]
[BlackClock "0:00:14"]

1. e4 {[%emt 1:15:23]} e5 {[%emt 1:15:22]} 2. Nf3 {[%emt 0:00:26]} Nc6 {[%emt 0:00:27]} 3. Bb5 {[%emt 0:00:26]} a6 {[%emt 0:00:26]} 4. Ba4 {[%emt 0:00:27]} Nf6 {[%emt 0:00:27]} 5. O-O {[%emt 0:00:27]} Be7 {[%emt 0:00:27]} 6. Re1 {[%emt 0:00:27]} b5 {[%emt 0:00:27]} 7. Bb3 {[%emt 0:00:26]} O-O {[%emt 0:00:27]} 8. d3 {[%emt 0:00:37]} d6 {[%emt 0:00:29]} 9. a3 {[%emt 0:00:32]} Nb8 {[%emt 0:01:40]} 10. Nc3 {[%emt 0:00:35]} Nbd7 {[%emt 0:00:50]} 11. Nd5 {[%emt 0:00:52]} Nxd5 {[%emt 0:00:33]} 12. Bxd5 {[%emt 0:00:27]} Rb8 {[%emt 0:00:25]} 13. d4 {[%emt 0:02:05]} c5 {[%emt 0:01:41]} 14. dxe5 {[%emt 0:02:17]} dxe5 {[%emt 0:00:27]} 15. Be3 {[%emt 0:00:45]} Qc7 {[%emt 0:00:28]} 16. Qe2 {[%emt 0:01:25]} Nb6 {[%emt 0:02:32]} 17. Ba2 {[%emt 0:01:56]} Bb7 {[%emt 0:00:56]} 18. Bg5 {[%emt 0:00:29]} Na4 {[%emt 0:00:34]} 19. Bxe7 {[%emt 0:00:45]} Qxe7 {[%emt 0:00:27]} 20. c4 {[%emt 0:01:12]} Bc6 {[%emt 0:01:29]} 21. Bb3 {[%emt 0:02:16]} Nb6 {[%emt 0:01:29]} 22. Rac1 {[%emt 0:00:53]} Rfd8 {[%emt 0:00:33]} 23. Qc2 {[%emt 0:01:36]} Nd7 {[%emt 0:03:17]} 24. Red1 {[%emt 0:01:18]} h6 {[%emt 0:00:58]} 25. cxb5 {[%emt 0:00:38]} axb5 {[%emt 0:00:27]} 26. Bd5 {[%emt 0:00:30]} Bxd5 {[%emt 0:02:48]} 27. Rxd5 {[%emt 0:00:26]} c4 {[%emt 0:00:26]} 28. Rcd1 {[%emt 0:00:50]} Nc5 {[%emt 0:01:08]} 29. Rxe5 {[%emt 0:00:43]} Rxd1+ {[%emt 0:01:22]} 30. Qxd1 {[%emt 0:00:26]} Rd8 {[%emt 0:00:26]} 31. Rd5 {[%emt 0:00:31]} Rxd5 {[%emt 0:00:27]} 32. Qxd5 {[%emt 0:02:51]} Qxe4 {[%emt 0:00:26]} 33. Qxe4 {[%emt 0:00:26]} Nxe4 {[%emt 0:00:26]} 34. Nd4 {[%emt 0:00:30]} c3 {[%emt 0:00:54]} 35. bxc3 {[%emt 0:00:30]} Nxc3 {[%emt 0:00:26]} 36. Kf1 {[%emt 0:00:28]} Kf8 {[%emt 0:00:25]} 37. Ke1 {[%emt 0:00:33]} Ke7 {[%emt 0:00:26]} 38. Kd2 {[%emt 0:00:40]} Nb1+ {[%emt 0:00:26]} 39. Kc2 {[%emt 0:00:27]} Nxa3+ {[%emt 0:00:28]} 40. Kb3 {[%emt 0:00:28]} Nc4 {[%emt 0:00:47]} 41. Nxb5 {[%emt 0:00:28]} Ne5 {[%emt 0:00:44]} 42. f3 {[%emt 0:01:11]} Nd3 {[%emt 0:00:38]} 43. Nd4 {[%emt 0:00:30]} Kf6 {[%emt 0:00:59]} 44. Kc3 {[%emt 0:00:31]} Ne1 {[%emt 0:00:41]} 45. g3 {[%emt 0:00:28]} Ke5 {[%emt 0:00:25]} 46. Ne2 {[%emt 0:00:24]} Nxf3 {[%emt 0:00:01]} 47. h3 Ke4 {[%emt 0:00:55]} 48. Kc2 {[%emt 0:00:11]} Nd4+ {[%emt 0:00:42]} 49. Nxd4 {[%emt 0:01:38]} Kxd4 {[%emt 0:00:25]} 50. Kd2 {[%emt 0:00:25]} Ke4 51. Ke2 f5 {[%emt 0:01:04]} 52. Kf2 {[%emt 0:00:52]} g5 {[%emt 0:00:32]} 53. Ke2 {[%emt 0:00:35]} g4 {[%emt 0:00:30]} 54. hxg4 {[%emt 0:00:36]} fxg4 {[%emt 0:00:25]} 55. Kf2 {[%emt 0:00:28]} 0-1

[Event "9th RTU Rapid 2019"]
[Site "Riga"]
[Date "2019.08.04"]
[Round "2.4"]
[White "Kantans, Toms"]
[Black "Raghavi, N.."]
[Result "1-0"]
[WhiteElo "2471"]
[BlackElo "2068"]
[PlyCount "61"]
[EventDate "2019.08.05"]
[EventType "swiss"]
[EventCountry "LAT"]
[TimeControl "5400+30"]
[WhiteClock "0:00:36"]
[BlackClock "0:10:02"]

1. e4 {[%emt 1:15:24]} g6 {[%emt 1:15:21]} 2. d4 {[%emt 0:00:26]} Bg7 {[%emt 0:00:27]} 3. Nc3 {[%emt 0:00:27]} d6 {[%emt 0:00:27]} 4. f4 {[%emt 0:00:27]} Nd7 {[%emt 0:01:01]} 5. Nf3 {[%emt 0:00:32]} e6 {[%emt 0:01:06]} 6. Be3 {[%emt 0:01:27]} Ne7 {[%emt 0:00:31]} 7. h4 {[%emt 0:01:20]} h5 {[%emt 0:01:06]} 8. Ng5 {[%emt 0:00:29]} d5 {[%emt 0:02:28]} 9. e5 {[%emt 0:00:59]} b6 {[%emt 0:01:47]} 10. g4 {[%emt 0:00:57]} c5 {[%emt 0:00:42]} 11. Be2 {[%emt 0:00:47]} cxd4 {[%emt 0:01:54]} 12. Bxd4 {[%emt 0:00:50]} hxg4 {[%emt 0:01:21]} 13. Bxg4 {[%emt 0:00:26]} Nf8 {[%emt 0:00:26]} 14. Nb5 {[%emt 0:00:37]} Nf5 {[%emt 0:02:04]} 15. Bxf5 {[%emt 0:00:29]} gxf5 {[%emt 0:00:27]} 16. Nd6+ {[%emt 0:00:33]} Kd7 {[%emt 0:01:05]} 17. Ndxf7 {[%emt 0:00:27]} Qe7 {[%emt 0:00:31]} 18. Nxh8 {[%emt 0:00:33]} Bxh8 {[%emt 0:00:27]} 19. Qh5 {[%emt 0:01:01]} Bg7 {[%emt 0:01:16]} 20. O-O-O {[%emt 0:00:28]} Ba6 {[%emt 0:00:50]} 21. Rhg1 {[%emt 0:00:29]} Kc7 {[%emt 0:02:16]} 22. Nf7 {[%emt 0:00:38]} Be2 {[%emt 0:00:32]} 23. Qxe2 {[%emt 0:00:32]} Qxf7 {[%emt 0:00:26]} 24. c4 {[%emt 0:00:57]} dxc4 {[%emt 0:01:00]} 25. Qxc4+ {[%emt 0:00:28]} Kb7 {[%emt 0:00:26]} 26. Kb1 {[%emt 0:00:27]} Bh6 {[%emt 0:00:51]} 27. Rc1 {[%emt 0:00:45]} Qd7 {[%emt 0:00:56]} 28. Be3 {[%emt 0:00:40]} Rd8 {[%emt 0:00:51]} 29. Rc3 {[%emt 0:00:40]} Kb8 {[%emt 0:00:48]} 30. h5 {[%emt 0:00:38]} Qb7 {[%emt 0:01:01]} 31. Rgc1 {[%emt 0:00:35]} 1-0